[Event "*** Titled Tuesday 3|2 Blitz (Early)"]
[Site "Chess.com"]
[Date "2016.12.06"]
[Round "7"]
[White "AmazingAtlas"]
[Black "WanderingPuppet"]
[Result "1-0"]
[WhiteElo "2309"]
[BlackElo "2287"]
[TimeControl "180+2"]
[EndTime "12:34:46 PST"]
[Termination "AmazingAtlas won by resignation"]

1. e4 {[%clk 0:03:02]} 1... c5 {[%clk 0:03:00.5]} 2. Nf3 {[%clk 0:03:00.9]} 2...
d6 {[%clk 0:03:01.5]} 3. Bb5+ {[%clk 0:03:01.4]} 3... Nd7 {[%clk 0:03:02.2]} 4.
d4 {[%clk 0:03:01]} 4... cxd4 {[%clk 0:02:59.5]} 5. Qxd4 {[%clk 0:03:02.9]} 5...
a6 {[%clk 0:02:49.3]} 6. Bxd7+ {[%clk 0:03:02.2]} 6... Bxd7 {[%clk 0:02:51.2]}
7. c4 {[%clk 0:03:02.2]} 7... e5 {[%clk 0:02:41.7]} 8. Qd3 {[%clk 0:03:02.1]}
8... Nf6 {[%clk 0:02:43.1]} 9. Nc3 {[%clk 0:03:02.5]} 9... h6 {[%clk 0:02:43.3]}
10. O-O {[%clk 0:03:02.6]} 10... Be7 {[%clk 0:02:43.3]} 11. Rd1 {[%clk
0:03:02.5]} 11... Qc7 {[%clk 0:02:44.8]} 12. b3 {[%clk 0:02:56.7]} 12... Rc8
{[%clk 0:02:44.2]} 13. Ba3 {[%clk 0:02:56.2]} 13... b5 {[%clk 0:02:45]} 14. Bxd6
{[%clk 0:02:34.7]} 14... Bxd6 {[%clk 0:02:45.2]} 15. Qxd6 {[%clk 0:02:36.4]}
15... Qxd6 {[%clk 0:02:43.4]} 16. Rxd6 {[%clk 0:02:38.3]} 16... bxc4 {[%clk
0:02:44.8]} 17. Nd5 {[%clk 0:02:37.6]} 17... Nxd5 {[%clk 0:02:15.4]} 18. exd5
{[%clk 0:02:32.2]} 18... Bb5 {[%clk 0:01:50.6]} 19. bxc4 {[%clk 0:02:29.6]}
19... Ke7 {[%clk 0:01:40.7]} 20. Rb6 {[%clk 0:02:28.1]} 20... Bxc4 {[%clk
0:01:30.4]} 21. Nxe5 {[%clk 0:02:28.2]} 21... Bxd5 {[%clk 0:01:29.8]} 22. Rxa6
{[%clk 0:02:25.7]} 22... Rc7 {[%clk 0:01:05.7]} 23. Re1 {[%clk 0:02:23.4]} 23...
Be6 {[%clk 0:00:58.7]} 24. Nxf7 {[%clk 0:02:23]} 24... Kxf7 {[%clk 0:00:58.9]}
25. Raxe6 {[%clk 0:02:24.6]} 25... Ra8 {[%clk 0:00:58.9]} 26. R6e2 {[%clk
0:02:22.5]} 26... Rca7 {[%clk 0:00:56.2]} 27. Ra1 {[%clk 0:02:23.3]} 27... Ra3
{[%clk 0:00:54.8]} 28. g3 {[%clk 0:02:18.5]} 28... h5 {[%clk 0:00:54.8]} 29. h4
{[%clk 0:02:18.7]} 29... Kg6 {[%clk 0:00:54.7]} 30. Kf1 {[%clk 0:02:12.7]} 30...
Kf5 {[%clk 0:00:55.3]} 31. Rc2 {[%clk 0:02:09]} 31... R8a5 {[%clk 0:00:54.3]}
32. Ke1 {[%clk 0:02:04.2]} 32... g6 {[%clk 0:00:47.9]} 33. Kf1 {[%clk
0:01:59.9]} 33... Rd5 {[%clk 0:00:34.9]} 34. Rac1 {[%clk 0:01:50.5]} 34... Re5
{[%clk 0:00:29]} 35. Kg2 {[%clk 0:01:41.7]} 35... Kf6 {[%clk 0:00:21.2]} 36.
Rc6+ {[%clk 0:01:40.8]} 36... Kf5 {[%clk 0:00:18.7]} 37. R1c4 {[%clk 0:01:40.8]}
37... Re2 {[%clk 0:00:10.5]} 38. Rf4+ {[%clk 0:01:39.7]} 38... Ke5 {[%clk
0:00:11.7]} 39. Rxg6 {[%clk 0:01:39.8]} 39... Raxa2 {[%clk 0:00:12.8]} 40. Rg5+
{[%clk 0:01:41.7]} 40... Ke6 {[%clk 0:00:14.1]} 41. Rxh5 {[%clk 0:01:42.8]}
41... Reb2 {[%clk 0:00:14]} 42. Rg5 {[%clk 0:01:40.3]} 42... Rb8 {[%clk
0:00:15.1]} 43. h5 {[%clk 0:01:41.2]} 43... Rh8 {[%clk 0:00:16.9]} 44. g4 {[%clk
0:01:42]} 44... Ra3 {[%clk 0:00:17.5]} 45. Rf3 {[%clk 0:01:41.8]} 45... Ra1
{[%clk 0:00:17.4]} 46. Rg6+ {[%clk 0:01:43.1]} 46... Ke5 {[%clk 0:00:18.7]} 47.
Rf5+ {[%clk 0:01:44.1]} 47... Ke4 {[%clk 0:00:19.9]} 48. Re6+ {[%clk 0:01:44.2]}
48... Kd4 {[%clk 0:00:20.6]} 49. Re3 {[%clk 0:01:44.7]} 49... Ra7 {[%clk
0:00:20.3]} 50. Kf3 {[%clk 0:01:44.6]} 50... Ra1 {[%clk 0:00:19.1]} 51. Re4+
{[%clk 0:01:45.6]} 51... Kd3 {[%clk 0:00:18.2]} 52. Rd5+ {[%clk 0:01:46.6]}
52... Kc3 {[%clk 0:00:19.1]} 53. Rf4 {[%clk 0:01:46.7]} 53... Ra3 {[%clk
0:00:16]} 54. Re5 {[%clk 0:01:43.3]} 54... Kd2+ {[%clk 0:00:15.6]} 55. Re3
{[%clk 0:01:44.3]} 55... Ra6 {[%clk 0:00:11.9]} 56. Rd4+ {[%clk 0:01:44.1]}
56... Kc2 {[%clk 0:00:13.2]} 57. Kg3 {[%clk 0:01:37.2]} 57... Rf6 {[%clk
0:00:10.6]} 58. Rf4 {[%clk 0:01:08.5]} 58... Rd6 {[%clk 0:00:10.4]} 59. Rff3
{[%clk 0:01:09.7]} 59... Rd1 {[%clk 0:00:09.9]} 60. Re2+ {[%clk 0:01:10.3]}
60... Kb1 {[%clk 0:00:07.2]} 61. Rfe3 {[%clk 0:01:07.5]} 61... Rd4 {[%clk
0:00:05.7]} 62. Rb3+ {[%clk 0:01:05.8]} 62... Kc1 {[%clk 0:00:05.8]} 63. Ra3
{[%clk 0:01:06.1]} 63... Kd1 {[%clk 0:00:06.9]} 64. Rb2 {[%clk 0:01:04.7]} 64...
Kc1 {[%clk 0:00:07.4]} 65. Raa2 {[%clk 0:01:02.4]} 65... Rg8 {[%clk 0:00:07.6]}
66. f3 {[%clk 0:01:02.3]} 66... Re8 {[%clk 0:00:07.5]} 67. Rg2 {[%clk
0:00:57.3]} 67... Kb1 {[%clk 0:00:06.8]} 68. Rab2+ {[%clk 0:00:58.2]} 68... Ka1
{[%clk 0:00:07.4]} 69. Rbf2 {[%clk 0:00:58.8]} 69... Rd1 {[%clk 0:00:07.1]} 70.
h6 {[%clk 0:00:52.6]} 70... Rh8 {[%clk 0:00:06.9]} 71. g5 {[%clk 0:00:52.4]}
71... Rg8 {[%clk 0:00:07.1]} 72. f4 {[%clk 0:00:52.6]} 72... Rgd8 {[%clk
0:00:07.8]} 73. Kg4 {[%clk 0:00:52.4]} 73... Re8 {[%clk 0:00:06.5]} 74. h7
{[%clk 0:00:45.3]} 74... Rh8 {[%clk 0:00:07.3]} 75. g6 {[%clk 0:00:46.2]} 75...
Rc8 {[%clk 0:00:09.2]} 76. g7 {[%clk 0:00:41.7]} 76... Rcd8 {[%clk 0:00:07]} 77.
h8=Q {[%clk 0:00:39.5]} 77... Kb1 {[%clk 0:00:05.7]} 1-0

[Event "*** Titled Tuesday 3|2 Blitz (Early)"]
[Site "Chess.com"]
[Date "2016.12.06"]
[Round "7"]
[White "Ind1anStar"]
[Black "alturas_pacificas"]
[Result "0-1"]
[WhiteElo "2171"]
[BlackElo "2183"]
[TimeControl "180+2"]
[EndTime "12:35:02 PST"]
[Termination "alturas_pacificas won by resignation"]

1. e4 {[%clk 0:03:02]} 1... e5 {[%clk 0:03:00.8]} 2. Nf3 {[%clk 0:02:58.6]} 2...
Nf6 {[%clk 0:03:01.6]} 3. d4 {[%clk 0:02:53.9]} 3... Nxe4 {[%clk 0:03:01.7]} 4.
dxe5 {[%clk 0:02:52.4]} 4... d5 {[%clk 0:03:02.8]} 5. Bd3 {[%clk 0:02:52.3]}
5... Nc5 {[%clk 0:03:02.6]} 6. O-O {[%clk 0:02:52.2]} 6... Nxd3 {[%clk
0:02:59.4]} 7. Qxd3 {[%clk 0:02:52.5]} 7... Be7 {[%clk 0:02:59.3]} 8. Nc3 {[%clk
0:02:49.4]} 8... c6 {[%clk 0:02:58.9]} 9. Bf4 {[%clk 0:02:49.2]} 9... O-O {[%clk
0:02:57.8]} 10. Rad1 {[%clk 0:02:49.7]} 10... Nd7 {[%clk 0:02:56.7]} 11. h3
{[%clk 0:02:47.4]} 11... Nc5 {[%clk 0:02:53.2]} 12. Qd2 {[%clk 0:02:48.1]} 12...
Bf5 {[%clk 0:02:50]} 13. Rfe1 {[%clk 0:02:43.9]} 13... Qb6 {[%clk 0:02:36.4]}
14. Nd4 {[%clk 0:02:36]} 14... Bg6 {[%clk 0:02:31.6]} 15. e6 {[%clk 0:02:21.7]}
15... fxe6 {[%clk 0:01:27.7]} 16. Nxe6 {[%clk 0:02:20.1]} 16... Nxe6 {[%clk
0:01:26]} 17. Rxe6 {[%clk 0:02:19.6]} 17... Bc5 {[%clk 0:01:25.5]} 18. Nxd5
{[%clk 0:02:17.3]} 18... Qxb2 {[%clk 0:00:57.1]} 19. Be3 {[%clk 0:01:55.7]}
19... Bxe3 {[%clk 0:00:50.3]} 20. Nxe3 {[%clk 0:01:53.2]} 20... Qxa2 {[%clk
0:00:51.3]} 21. Re7 {[%clk 0:01:50.7]} 21... Rf7 {[%clk 0:00:47.7]} 22. Qd7
{[%clk 0:01:43.2]} 22... Rxe7 {[%clk 0:00:33.4]} 23. Qxe7 {[%clk 0:01:43]} 23...
Qf7 {[%clk 0:00:34.1]} 24. Qb4 {[%clk 0:01:39]} 24... Rf8 {[%clk 0:00:30.1]} 25.
Qd2 {[%clk 0:01:37.6]} 25... a5 {[%clk 0:00:26.7]} 26. Ng4 {[%clk 0:01:37.1]}
26... Bh5 {[%clk 0:00:25.6]} 27. Rb1 {[%clk 0:01:21.5]} 27... Bxg4 {[%clk
0:00:24.4]} 28. hxg4 {[%clk 0:01:22.8]} 28... a4 {[%clk 0:00:24.7]} 29. f3
{[%clk 0:01:21.8]} 29... b5 {[%clk 0:00:25.7]} 30. Qc3 {[%clk 0:01:20]} 30...
Qe6 {[%clk 0:00:25.4]} 31. Re1 {[%clk 0:01:18.9]} 31... Qd6 {[%clk 0:00:26.4]}
32. Re4 {[%clk 0:01:12.5]} 32... Rd8 {[%clk 0:00:26.3]} 33. Qa5 {[%clk
0:01:05.6]} 33... h6 {[%clk 0:00:22.8]} 34. Qb6 {[%clk 0:01:01.9]} 34... a3
{[%clk 0:00:21.2]} 35. Qa7 {[%clk 0:01:01.7]} 35... Rd7 {[%clk 0:00:19.5]} 36.
Qa8+ {[%clk 0:00:57.3]} 36... Kh7 {[%clk 0:00:21]} 37. Re8 {[%clk 0:00:52.6]}
37... Qd4+ {[%clk 0:00:17.2]} 38. Kh1 {[%clk 0:00:49.9]} 38... Qd1+ {[%clk
0:00:18.2]} 39. Kh2 {[%clk 0:00:50.4]} 39... Qd6+ {[%clk 0:00:19.4]} 40. Kh3
{[%clk 0:00:51.4]} 40... Re7 {[%clk 0:00:17]} 41. Rh8+ {[%clk 0:00:51.5]} 41...
Kg6 {[%clk 0:00:17.7]} 42. Qc8 {[%clk 0:00:51.2]} 42... Qe6 {[%clk 0:00:18.1]}
43. Qa8 {[%clk 0:00:40.5]} 43... a2 {[%clk 0:00:19.3]} 44. Qa3 {[%clk
0:00:37.8]} 44... Rd7 {[%clk 0:00:18.9]} 45. f4 {[%clk 0:00:35.5]} 45... Qe4
{[%clk 0:00:12.8]} 46. f5+ {[%clk 0:00:29.9]} 46... Kg5 {[%clk 0:00:11.4]} 47.
Qc1+ {[%clk 0:00:28]} 47... Qf4 {[%clk 0:00:11.4]} 48. Qxf4+ {[%clk 0:00:26.5]}
48... Kxf4 {[%clk 0:00:12.4]} 49. g3+ {[%clk 0:00:26.8]} 49... Ke3 {[%clk
0:00:12.4]} 50. Ra8 {[%clk 0:00:28.4]} 50... Kd2 {[%clk 0:00:12.6]} 51. Rxa2
{[%clk 0:00:29.9]} 51... Kc3 {[%clk 0:00:13.9]} 52. Ra6 {[%clk 0:00:29.8]} 52...
Rd6 {[%clk 0:00:14.4]} 53. Ra2 {[%clk 0:00:27]} 53... b4 {[%clk 0:00:15.7]} 54.
Kh4 {[%clk 0:00:26.8]} 54... c5 {[%clk 0:00:17.3]} 55. g5 {[%clk 0:00:27.3]}
55... hxg5+ {[%clk 0:00:19.2]} 56. Kxg5 {[%clk 0:00:28.6]} 56... c4 {[%clk
0:00:19.5]} 57. g4 {[%clk 0:00:29.2]} 57... Rd2 {[%clk 0:00:17]} 58. Kg6 {[%clk
0:00:28.7]} 58... Rxc2 {[%clk 0:00:17.7]} 59. Ra7 {[%clk 0:00:27.4]} 59... Rg2
{[%clk 0:00:16.4]} 60. g5 {[%clk 0:00:28.5]} 60... b3 {[%clk 0:00:17.5]} 61.
Rxg7 {[%clk 0:00:29.3]} 61... b2 {[%clk 0:00:10.5]} 62. Rb7 {[%clk 0:00:30.3]}
62... Kc2 {[%clk 0:00:11.6]} 63. f6 {[%clk 0:00:29.1]} 63... c3 {[%clk 0:00:13]}
64. f7 {[%clk 0:00:28.9]} 64... Rf2 {[%clk 0:00:14.4]} 65. Kg7 {[%clk
0:00:27.5]} 65... b1=Q {[%clk 0:00:13.4]} 66. Rxb1 {[%clk 0:00:28]} 66... Kxb1
{[%clk 0:00:15.3]} 67. g6 {[%clk 0:00:28.8]} 67... c2 {[%clk 0:00:16.2]} 68.
f8=Q {[%clk 0:00:29.3]} 68... Rxf8 {[%clk 0:00:16.9]} 69. Kxf8 {[%clk
0:00:30.9]} 69... c1=Q {[%clk 0:00:18.4]} 70. g7 {[%clk 0:00:32.5]} 70... Qf4+
{[%clk 0:00:19.1]} 71. Kg8 {[%clk 0:00:33.8]} 71... Kc2 {[%clk 0:00:19.1]} 72.
Kh7 {[%clk 0:00:35.4]} 72... Qh4+ {[%clk 0:00:20.2]} 73. Kg6 {[%clk 0:00:36.7]}
73... Qg4+ {[%clk 0:00:21.7]} 74. Kf7 {[%clk 0:00:38]} 74... Qf5+ {[%clk
0:00:22.6]} 75. Ke7 {[%clk 0:00:39.5]} 75... Qg6 {[%clk 0:00:21.4]} 76. Kf8
{[%clk 0:00:40.7]} 76... Qf6+ {[%clk 0:00:22.7]} 77. Kg8 {[%clk 0:00:41.8]}
77... Kd3 {[%clk 0:00:23.8]} 78. Kh7 {[%clk 0:00:43.4]} 78... Qh4+ {[%clk
0:00:24.2]} 79. Kg6 {[%clk 0:00:44]} 79... Qg4+ {[%clk 0:00:25.6]} 80. Kh7
{[%clk 0:00:44.8]} 80... Qh5+ {[%clk 0:00:26.2]} 81. Kg8 {[%clk 0:00:46.3]}
81... Ke4 {[%clk 0:00:27.2]} 82. Kf8 {[%clk 0:00:47.9]} 82... Qf5+ {[%clk
0:00:28.4]} 83. Ke7 {[%clk 0:00:44.9]} 83... Qg6 {[%clk 0:00:28.5]} 84. Kf8
{[%clk 0:00:46.4]} 84... Qf6+ {[%clk 0:00:29.7]} 85. Kg8 {[%clk 0:00:48]} 85...
Kf5 {[%clk 0:00:29.5]} 86. Kh7 {[%clk 0:00:49.6]} 86... Qg6+ {[%clk 0:00:30.2]}
87. Kh8 {[%clk 0:00:48.6]} 87... Qh6+ {[%clk 0:00:29.2]} 88. Kg8 {[%clk
0:00:49.9]} 88... Kf6 {[%clk 0:00:30.4]} 0-1

[Event "*** Titled Tuesday 3|2 Blitz (Early)"]
[Site "Chess.com"]
[Date "2016.12.06"]
[Round "8"]
[White "WanderingPuppet"]
[Black "Nachsueb"]
[Result "1-0"]
[WhiteElo "2293"]
[BlackElo "2089"]
[TimeControl "180+2"]
[EndTime "12:41:52 PST"]
[Termination "WanderingPuppet won by resignation"]

1. e4 {[%clk 0:03:02]} 1... e5 {[%clk 0:03:00.1]} 2. Nf3 {[%clk 0:03:01.7]} 2...
Nc6 {[%clk 0:03:01.3]} 3. Bb5 {[%clk 0:03:02.8]} 3... a6 {[%clk 0:03:02.4]} 4.
Ba4 {[%clk 0:03:03.9]} 4... Nf6 {[%clk 0:03:03.8]} 5. O-O {[%clk 0:03:04.7]}
5... b5 {[%clk 0:03:05]} 6. Bb3 {[%clk 0:03:05.7]} 6... Be7 {[%clk 0:03:06.6]}
7. Re1 {[%clk 0:03:07]} 7... O-O {[%clk 0:03:07.2]} 8. a4 {[%clk 0:03:08.7]}
8... Rb8 {[%clk 0:03:04.1]} 9. axb5 {[%clk 0:03:09]} 9... axb5 {[%clk 0:03:06]}
10. c3 {[%clk 0:03:10.6]} 10... d6 {[%clk 0:03:02.7]} 11. d4 {[%clk 0:03:12.2]}
11... exd4 {[%clk 0:02:34.1]} 12. cxd4 {[%clk 0:03:14.1]} 12... Bg4 {[%clk
0:02:35]} 13. Be3 {[%clk 0:03:06.5]} 13... Nxe4 {[%clk 0:02:28.5]} 14. Bd5
{[%clk 0:03:06.7]} 1-0

[Event "*** Titled Tuesday 3|2 Blitz (Early)"]
[Site "Chess.com"]
[Date "2016.12.06"]
[Round "8"]
[White "DanielNaroditsky"]
[Black "GM_Donatello"]
[Result "1-0"]
[WhiteElo "2706"]
[BlackElo "2572"]
[TimeControl "180+2"]
[EndTime "12:44:16 PST"]
[Termination "DanielNaroditsky won by resignation"]

1. d4 {[%clk 0:03:02]} 1... Nf6 {[%clk 0:03:00.6]} 2. Bf4 {[%clk 0:03:02.9]}
2... g6 {[%clk 0:02:58.3]} 3. Nc3 {[%clk 0:03:04.1]} 3... d5 {[%clk 0:02:59.2]}
4. Qd2 {[%clk 0:03:05.3]} 4... c6 {[%clk 0:02:57]} 5. f3 {[%clk 0:03:03.6]} 5...
b5 {[%clk 0:02:55.3]} 6. a3 {[%clk 0:02:57.8]} 6... Nbd7 {[%clk 0:02:54.2]} 7.
e4 {[%clk 0:02:55.2]} 7... Nb6 {[%clk 0:02:53.3]} 8. e5 {[%clk 0:02:53.3]} 8...
Nfd7 {[%clk 0:02:54.3]} 9. Bh6 {[%clk 0:02:49.3]} 9... a5 {[%clk 0:02:50.8]} 10.
Bd3 {[%clk 0:02:38.9]} 10... Bb7 {[%clk 0:02:36.6]} 11. Bxf8 {[%clk 0:02:19.2]}
11... Nxf8 {[%clk 0:02:34.9]} 12. Nge2 {[%clk 0:02:21.1]} 12... Ne6 {[%clk
0:02:28.9]} 13. O-O {[%clk 0:02:22.1]} 13... h5 {[%clk 0:02:29]} 14. f4 {[%clk
0:02:22.7]} 14... Ng7 {[%clk 0:02:30.1]} 15. f5 {[%clk 0:02:22.3]} 15... Nxf5
{[%clk 0:02:28.3]} 16. Bxf5 {[%clk 0:02:22.7]} 16... gxf5 {[%clk 0:02:30.2]} 17.
Rxf5 {[%clk 0:02:23.9]} 17... Bc8 {[%clk 0:02:31.6]} 18. Rf2 {[%clk 0:02:21.8]}
18... Be6 {[%clk 0:02:30.8]} 19. Raf1 {[%clk 0:02:17.9]} 19... Qd7 {[%clk
0:02:30.4]} 20. Nf4 {[%clk 0:02:15.5]} 20... O-O-O {[%clk 0:02:28.8]} 21. Nd3
{[%clk 0:02:16.8]} 21... Nc4 {[%clk 0:02:25.9]} 22. Qe1 {[%clk 0:02:14.1]} 22...
Kb8 {[%clk 0:02:25.6]} 23. b3 {[%clk 0:02:13.4]} 23... Nxa3 {[%clk 0:02:23.4]}
24. Nc5 {[%clk 0:02:14.8]} 24... Qc8 {[%clk 0:02:24.3]} 25. Nxd5 {[%clk
0:01:50.9]} 25... Rxd5 {[%clk 0:01:44.9]} 26. Qxa5 {[%clk 0:01:36]} 26... b4
{[%clk 0:01:43.5]} 27. Qb6+ {[%clk 0:01:24.7]} 1-0

[Event "*** Titled Tuesday 3|2 Blitz (Early)"]
[Site "Chess.com"]
[Date "2016.12.06"]
[Round "8"]
[White "rubhani"]
[Black "Ar4uha"]
[Result "1-0"]
[WhiteElo "2421"]
[BlackElo "2452"]
[TimeControl "180+2"]
[EndTime "12:44:16 PST"]
[Termination "rubhani won by resignation"]

1. e4 {[%clk 0:03:02]} 1... e5 {[%clk 0:03:00]} 2. Nf3 {[%clk 0:03:02.6]} 2...
d6 {[%clk 0:03:01.5]} 3. d4 {[%clk 0:03:01.2]} 3... exd4 {[%clk 0:03:03.4]} 4.
Nxd4 {[%clk 0:03:02.1]} 4... Nf6 {[%clk 0:03:05]} 5. Nc3 {[%clk 0:03:03.5]} 5...
Be7 {[%clk 0:03:06.6]} 6. Bd3 {[%clk 0:03:04.7]} 6... O-O {[%clk 0:03:08.3]} 7.
O-O {[%clk 0:03:05.9]} 7... Nbd7 {[%clk 0:03:07.7]} 8. Re1 {[%clk 0:03:05.8]}
8... Nc5 {[%clk 0:03:08.8]} 9. Bf1 {[%clk 0:03:06.6]} 9... Re8 {[%clk
0:03:08.9]} 10. h3 {[%clk 0:03:07.5]} 10... Bf8 {[%clk 0:03:09.9]} 11. Qf3
{[%clk 0:03:03.2]} 11... h6 {[%clk 0:02:36.3]} 12. Bf4 {[%clk 0:02:58]} 12... c6
{[%clk 0:02:29.2]} 13. Rad1 {[%clk 0:02:58.6]} 13... Qb6 {[%clk 0:02:30.1]} 14.
Nb3 {[%clk 0:02:57.9]} 14... Nxb3 {[%clk 0:02:07.3]} 15. axb3 {[%clk 0:02:58.9]}
15... Qc7 {[%clk 0:02:08.7]} 16. Qd3 {[%clk 0:03:00]} 16... Be6 {[%clk
0:01:42.7]} 17. Bxd6 {[%clk 0:02:59.9]} 17... Bxd6 {[%clk 0:01:44.6]} 18. Qxd6
{[%clk 0:03:01.1]} 18... Qa5 {[%clk 0:01:46.5]} 19. b4 {[%clk 0:02:41.3]} 19...
Qg5 {[%clk 0:01:47.2]} 20. e5 {[%clk 0:02:32]} 20... Nh5 {[%clk 0:01:48.3]} 21.
Ne4 {[%clk 0:02:31.2]} 21... Qh4 {[%clk 0:01:48.3]} 22. g3 {[%clk 0:02:25.4]}
22... Qe7 {[%clk 0:01:49.2]} 23. Qxe7 {[%clk 0:02:25.8]} 23... Rxe7 {[%clk
0:01:51.1]} 24. Be2 {[%clk 0:02:22.9]} 24... g6 {[%clk 0:01:47.1]} 25. Bxh5
{[%clk 0:02:21.4]} 25... gxh5 {[%clk 0:01:49]} 26. Kg2 {[%clk 0:02:18.7]} 26...
h4 {[%clk 0:01:46.6]} 27. g4 {[%clk 0:02:18.9]} 27... Bd5 {[%clk 0:01:48.1]} 28.
f4 {[%clk 0:02:15.5]} 28... Kg7 {[%clk 0:01:49.2]} 29. Kf2 {[%clk 0:02:15.9]}
29... h5 {[%clk 0:01:42.3]} 30. Nd6 {[%clk 0:02:14.9]} 30... Rd7 {[%clk
0:01:30.2]} 31. c4 {[%clk 0:02:13.5]} 31... Be6 {[%clk 0:01:30.7]} 32. f5 {[%clk
0:02:14.1]} 32... Rxd6 {[%clk 0:01:31.2]} 33. exd6 {[%clk 0:02:11.4]} 33... Bxc4
{[%clk 0:01:33.1]} 34. d7 {[%clk 0:02:12.2]} 1-0

[Event "*** Titled Tuesday 3|2 Blitz (Early)"]
[Site "Chess.com"]
[Date "2016.12.06"]
[Round "8"]
[White "theprosecution1"]
[Black "Genghis_K"]
[Result "0-1"]
[WhiteElo "2544"]
[BlackElo "2687"]
[TimeControl "180+2"]
[EndTime "12:44:19 PST"]
[Termination "Genghis_K won by resignation"]

1. e4 {[%clk 0:03:02]} 1... c5 {[%clk 0:02:55.5]} 2. Nf3 {[%clk 0:03:02.8]} 2...
d6 {[%clk 0:02:57.1]} 3. d4 {[%clk 0:03:04.1]} 3... cxd4 {[%clk 0:02:59]} 4.
Nxd4 {[%clk 0:03:06]} 4... Nf6 {[%clk 0:03:00.3]} 5. Nc3 {[%clk 0:03:07.7]} 5...
a6 {[%clk 0:03:01.9]} 6. Rg1 {[%clk 0:03:09.3]} 6... b5 {[%clk 0:02:57.5]} 7. g4
{[%clk 0:03:08.7]} 7... Bb7 {[%clk 0:02:53.3]} 8. Bg2 {[%clk 0:03:10]} 8... e5
{[%clk 0:02:31.4]} 9. Nf5 {[%clk 0:03:11]} 9... b4 {[%clk 0:02:32.4]} 10. Nd5
{[%clk 0:03:10.7]} 10... Nxd5 {[%clk 0:02:31.2]} 11. exd5 {[%clk 0:03:12.6]}
11... Nd7 {[%clk 0:02:32.8]} 12. Be3 {[%clk 0:03:12.2]} 12... g6 {[%clk
0:02:31.6]} 13. Ng3 {[%clk 0:03:08.3]} 13... Be7 {[%clk 0:02:32.8]} 14. Qd2
{[%clk 0:03:06.8]} 14... a5 {[%clk 0:02:29.8]} 15. a3 {[%clk 0:02:56.9]} 15...
O-O {[%clk 0:02:27.9]} 16. g5 {[%clk 0:02:47]} 16... f5 {[%clk 0:02:19.9]} 17.
gxf6 {[%clk 0:02:47.4]} 17... Nxf6 {[%clk 0:02:20.8]} 18. Bh6 {[%clk 0:02:44.3]}
18... Rf7 {[%clk 0:02:21.4]} 19. Ne4 {[%clk 0:02:33.6]} 19... Nxd5 {[%clk
0:02:17.2]} 20. Ng5 {[%clk 0:02:34.1]} 20... Bxg5 {[%clk 0:02:18.2]} 21. Bxg5
{[%clk 0:02:36]} 21... Qb6 {[%clk 0:02:13.9]} 22. Bxd5 {[%clk 0:01:13.8]} 22...
Bxd5 {[%clk 0:02:13.1]} 23. axb4 {[%clk 0:01:15.3]} 23... axb4 {[%clk
0:01:58.5]} 24. Rd1 {[%clk 0:01:02]} 24... Bf3 {[%clk 0:01:57.5]} 25. Qxd6
{[%clk 0:01:01.6]} 25... Qxd6 {[%clk 0:01:58.5]} 26. Rxd6 {[%clk 0:01:03.5]}
26... Ra1+ {[%clk 0:01:59.9]} 0-1

[Event "*** Titled Tuesday 3|2 Blitz (Early)"]
[Site "Chess.com"]
[Date "2016.12.06"]
[Round "8"]
[White "RaphaeI"]
[Black "Generalas"]
[Result "0-1"]
[WhiteElo "2237"]
[BlackElo "2212"]
[TimeControl "180+2"]
[EndTime "12:44:47 PST"]
[Termination "Generalas won on time"]

1. d4 {[%clk 0:03:02]} 1... Nf6 {[%clk 0:02:59.8]} 2. c4 {[%clk 0:03:03.1]} 2...
c5 {[%clk 0:03:00.6]} 3. d5 {[%clk 0:03:03.8]} 3... b5 {[%clk 0:03:01.4]} 4.
cxb5 {[%clk 0:03:05.7]} 4... a6 {[%clk 0:03:02.1]} 5. bxa6 {[%clk 0:03:07.6]}
5... g6 {[%clk 0:03:02.9]} 6. Nc3 {[%clk 0:03:08.9]} 6... Bxa6 {[%clk
0:03:03.5]} 7. e4 {[%clk 0:03:10]} 7... Bxf1 {[%clk 0:03:03.1]} 8. Kxf1 {[%clk
0:03:11.9]} 8... d6 {[%clk 0:03:04.7]} 9. Nf3 {[%clk 0:03:13.4]} 9... Nbd7
{[%clk 0:03:05.5]} 10. g3 {[%clk 0:03:14.8]} 10... Bg7 {[%clk 0:03:07.2]} 11.
Kg2 {[%clk 0:03:16.4]} 11... O-O {[%clk 0:03:08]} 12. a4 {[%clk 0:03:18.1]}
12... Qb6 {[%clk 0:02:59.4]} 13. Qe2 {[%clk 0:03:14.2]} 13... Rfb8 {[%clk
0:02:59.2]} 14. Nb5 {[%clk 0:03:01.3]} 14... Ne8 {[%clk 0:02:45.6]} 15. Bg5
{[%clk 0:03:02.3]} 15... Kf8 {[%clk 0:02:45.6]} 16. Nd2 {[%clk 0:02:41.7]} 16...
Qa6 {[%clk 0:02:24.7]} 17. Nc4 {[%clk 0:02:36.1]} 17... Nb6 {[%clk 0:02:15.6]}
18. Nxb6 {[%clk 0:00:44.7]} 18... Rxb6 {[%clk 0:02:14.8]} 19. Qc2 {[%clk
0:00:23.9]} 19... Qb7 {[%clk 0:02:09]} 20. Ra2 {[%clk 0:00:18.7]} 20... Rxb5
{[%clk 0:02:07.9]} 0-1